fUST/lending_fUST_20250927
["ID","MTS","AMOUNT","RATE_DAILY","PERIOD"]
[388035498,1758981037766,-306.06293732,0.00032573,5]
[388035499,1758981037776,-203.44963791,0.000326,120]
[388035500,1758981037785,-500.0,0.00032822,120]
[388035501,1758981037796,-3814.24323257,0.00032866,2]
[388035502,1758981037805,-502.33,0.00032866,3]
[388035503,1758981037814,-446.0,0.0003287,2]
[388035504,1758981037824,-2500.0,0.00032876,2]
[388035505,1758981037833,-2500.0,0.00032876,2]
[388035506,1758981037842,-2500.0,0.00032876,2]
[388035507,1758981037853,-2500.0,0.00032876,2]
[388035508,1758981037863,-2500.0,0.00032876,2]
[388035509,1758981037873,-2500.0,0.00032876,2]
[388035510,1758981037882,-2500.0,0.00032876,2]
[388035511,1758981037891,-2500.0,0.00032876,2]
[388035512,1758981037901,-2500.0,0.00032876,2]
[388035513,1758981037911,-2500.0,0.00032876,2]
[388035515,1758981037922,-2500.0,0.00032876,2]
[388035516,1758981037931,-2500.0,0.00032876,2]
[388035517,1758981037941,-2500.0,0.00032876,2]
[388035518,1758981037950,-2500.0,0.00032876,2]
[388035519,1758981037959,-2500.0,0.00032876,2]
[388035520,1758981037968,-2500.0,0.00032876,2]
[388035521,1758981037978,-1057.6479087,0.00032876,2]
[388035522,1758981037988,-533.953136,0.00032877,2]
[388035523,1758981037997,-237.65275724,0.00032899,2]
[388035524,1758981038006,-1102.06018253,0.00032899,2]
[388035525,1758981038016,-237.6527572,0.00032924,2]
[388035526,1758981038026,-237.6527572,0.00032949,2]
[388035527,1758981038036,-1102.06018252,0.00032949,2]
[388035528,1758981038045,-334.86,0.00032953,3]
[388035529,1758981038054,-167.43,0.00032953,3]
[388035530,1758981038064,-669.73,0.00032963,3]
[388035531,1758981038074,-500.0,0.00032973,5]
[388035532,1758981038084,-485.7374942,0.00032973,5]
[388035533,1758981038094,-500.0,0.00032973,5]
[388035534,1758981038104,-500.0,0.00032973,2]
[388035535,1758981038113,-500.0,0.00032973,5]
[388035536,1758981038122,-500.0,0.00032973,5]
[388035537,1758981038132,-500.0,0.00032973,5]
[388035538,1758981038142,-500.0,0.00032973,5]
[388035539,1758981038152,-500.0,0.00032973,5]
[388035540,1758981038162,-500.0,0.00032973,5]
[388035541,1758981038172,-500.0,0.00032973,5]
[388035542,1758981038182,-500.0,0.00032973,5]
[388035543,1758981038191,-500.0,0.00032973,5]
[388035544,1758981038201,-500.0,0.00032973,5]
[388035545,1758981038211,-500.0,0.00032973,5]
[388035546,1758981038220,-500.0,0.00032973,5]
[388035547,1758981038231,-500.0,0.00032973,5]
[388035548,1758981038241,-500.0,0.00032973,5]
[388035549,1758981038255,-500.0,0.00032973,5]
[388035550,1758981038264,-500.0,0.00032973,5]
[388035551,1758981038274,-500.0,0.00032973,5]
[388035552,1758981038284,-500.0,0.00032973,5]
[388035553,1758981038296,-228.81988074,0.00032973,5]
[388035554,1758981038305,-158.23538116,0.00032974,2]
[388035555,1758981038319,-79.41737604,0.00032974,2]
[388035556,1758981038330,-3814.24323257,0.00032979,2]
[388035557,1758981038339,-30513.9458606,0.00032989,2]
[388035558,1758981038349,-38142.4323257,0.0003299,2]
[388035559,1758981038359,-21019.93681481,0.0003299,2]
[388035560,1758981038370,-370000.0,0.00032999,2]
[388035561,1758981038380,-6590.22089646,0.00032999,2]
[388035562,1758981038390,-237.6527572,0.00032999,2]
[388035563,1758981038400,-1102.06018252,0.00032999,2]
[388035564,1758981038411,-244953.56119347,0.00033,25]
[388035565,1758981038423,-127851.9876922,0.00033,25]
[388035566,1758981038435,-17081.93288426,0.00033,25]
[388035587,1758981043508,-848.6890013,0.00033,25]
[388035594,1758981045818,-2126.57060862,0.00033,25]
[388035599,1758981499249,-227.33182254,0.00020099,2]
[388035600,1758981499771,-822.26680777,0.00020099,2]
[388035601,1758981500636,-45.84764805,0.00020099,2]
[388035610,1758982027123,-166.87416056,0.00025806,2]
[388035612,1758982033083,-1186.97339956,0.00025806,2]
[388035613,1758982033103,-300.0,0.00026592,2]
[388035614,1758982033123,-180.0,0.00026593,2]
[388035615,1758982033143,-300.0,0.00026593,2]
[388035616,1758982033163,-300.0,0.00026593,2]
[388035617,1758982033184,-1200.0,0.00026593,2]
[388035618,1758982033206,-500.0,0.00026593,2]
[388035619,1758982033226,-492.95842792,0.00026593,2]
[388035620,1758982033245,-315.71787694,0.00026593,2]
[388035621,1758982033266,-500.0,0.00026593,2]
[388035622,1758982033288,-500.0,0.00026593,2]
[388035623,1758982033310,-508.0400093,0.00026593,2]
[388035624,1758982033330,-1200.0,0.00026595,2]
[388035625,1758982033349,-1760.24995501,0.00026599,2]
[388035626,1758982040079,-204.43188598,0.00026599,2]
[388035627,1758982159160,-249.94023311,0.00025801,2]
[388035628,1758982166076,-3035.31815901,0.00026599,2]
[388035629,1758982173176,-223.11555659,0.00028568,2]
[388035630,1758982173196,-157.99,0.00028568,2]
[388035631,1758982173217,-300.0,0.00028568,2]
[388035632,1758982173238,-1994.22358941,0.00028569,2]
[388035681,1758982232087,-1319.39783097,0.00028569,2]
[388035683,1758982232099,-829.68480862,0.00028569,2]
[388035685,1758982232108,-186.771628,0.00028756,60]
[388035687,1758982232118,-91.34356338,0.00028872,30]
[388035689,1758982232129,-265.31770726,0.00028872,30]
[388035691,1758982232140,-643.33872936,0.00028872,30]
[388035694,1758982232150,-56.51727064,0.00028916,2]
[388035696,1758982232161,-571.80630482,0.00028916,2]
[388035698,1758982232172,-383.67642454,0.00028916,2]
[388035700,1758982232182,-631.0824502,0.00028917,2]
[388035702,1758982232191,-666.0,0.00029225,2]
[388035704,1758982232201,-222.0,0.00029886,2]
[388035706,1758982232210,-250.593207,0.00029887,2]
[388035708,1758982232219,-1673.9051049,0.00029887,2]
[388035719,1758982232284,-3800.0,0.00029887,2]
[388035721,1758982232295,-544.32532797,0.00029887,2]
[388035723,1758982232306,-282.34546992,0.00029887,2]
[388035725,1758982232316,-740.19601894,0.00029887,2]
[388035727,1758982232327,-3564.73250876,0.00029887,2]
[388035729,1758982232338,-330.04430029,0.0003,14]
[388035731,1758982232347,-175.72195162,0.0003,14]
[388035733,1758982232356,-177.4108125,0.00032,120]
[388035735,1758982232366,-169.62692055,0.00032,120]
[388035737,1758982232375,-170.71842005,0.00032,120]
[388035739,1758982232384,-258.79328995,0.00032676,2]
[388035741,1758982232393,-201.39677605,0.00032765,2]
[388035743,1758982232402,-361.88361375,0.00032765,2]
[388035745,1758982232411,-480.0,0.00032765,15]
[388035747,1758982232420,-263.229,0.00032765,33]
[388035749,1758982232430,-18037.2693797,0.00032766,2]
[388035751,1758982232440,-9854.04806533,0.00032766,2]
[388035753,1758982232449,-954.21,0.00032766,3]
[388035755,1758982232459,-477.1,0.00032766,3]
[388035757,1758982232468,-238.55,0.00032766,3]
[388035759,1758982232477,-715.68,0.00032766,3]
[388035761,1758982232486,-762.03,0.00032766,3]
[388035763,1758982232495,-153.48,0.00032766,10]
[388035765,1758982232504,-4323.03226338,0.00032776,2]
[388035767,1758982232515,-1080.10276993,0.00032776,2]
[388035769,1758982232527,-9466.7454951,0.00032776,2]
[388035862,1758982237936,-1037.59194052,0.00032776,2]
[388035882,1758982238118,-11632.60883813,0.00032776,2]
[388035887,1758982238158,-8668.97565747,0.00032776,2]
[388036679,1758982246225,-22.714654,0.00032776,2]
[388040790,1758982326927,627.98440412,0.00025204,2]
[388040797,1758983217099,-4839.0,0.00025204,2]
[388040798,1758983217121,-434.7544913,0.00025848,2]
[388040799,1758983217142,-618.05236495,0.00026846,2]
[388040800,1758983217165,-116.53851254,0.00026846,2]
[388040802,1758983247119,-225.0537902,0.00025848,2]
[388040804,1758983290693,3073.60662216,0.00019205,5]
[388040807,1758983302477,227.33182254,0.00024953,13]
[388040808,1758983310584,5000.0,0.00025205,2]
[388040809,1758983314497,2212.20418553,0.00015,2]
[388040810,1758983315078,2560.47399193,0.00025,2]
[388040811,1758983315100,4533.95484904,0.00025,2]
[388040812,1758983315202,209.37563157,0.00025,2]
[388040813,1758983315249,5256.67951939,0.00025,2]
[388040814,1758983315272,5107.32048061,0.00025,2]
[388040815,1758983315317,361.57957058,0.00025,2]
[388040817,1758983322168,2518.29138358,0.0001,2]
[388040818,1758983323870,1811.56828237,0.0001,2]
[388040819,1758983349082,-3184.37652794,0.00024403,2]
[388040820,1758983349104,-7228.7568771,0.0002465,2]
[388040821,1758983352125,-119.89286948,0.0002465,2]
[388040822,1758983352145,-500.0,0.00025,2]
[388040823,1758983352166,-150.0,0.00025,2]
[388040824,1758983352186,-1173.03223592,0.00025,2]
[388040825,1758983352207,-600.0,0.00025,2]
[388040826,1758983352225,-250.593207,0.00025592,2]
[388040827,1758983352245,-363.3674102,0.00025848,2]
[388040828,1758983352265,-500.0,0.00026845,2]
[388040829,1758983352286,-500.0,0.00026845,2]
[388040830,1758983352308,-500.0,0.00026845,2]
[388040831,1758983352330,-500.0,0.00026845,2]
[388040832,1758983352354,-500.0,0.00026845,2]
[388040833,1758983352374,-500.0,0.00026845,2]
[388040834,1758983352600,-500.0,0.00026845,2]
[388040835,1758983352620,-257.58896618,0.00026845,2]
[388040836,1758983352643,-500.0,0.00026845,2]
[388040837,1758983352664,-188.50279227,0.00026845,2]
[388040838,1758983352685,-270.87753723,0.00026845,2]
[388040839,1758983352708,-500.0,0.00026845,2]
[388040840,1758983352730,-500.0,0.00026845,2]
[388040841,1758983352752,-500.0,0.00026845,2]
[388040842,1758983352777,-500.0,0.00026845,2]
[388040843,1758983352800,-500.0,0.00026845,2]
[388040844,1758983352824,-500.0,0.00026845,2]
[388040845,1758983352847,-500.0,0.00026845,2]
[388040846,1758983352869,-485.23536138,0.00026845,2]
[388040847,1758983371099,-14.76463862,0.00026845,2]
[388040848,1758983371134,-610.06532493,0.00026845,2]
[388040849,1758983371157,-500.0,0.00026845,2]
[388040850,1758983371180,-500.0,0.00026845,2]
[388040851,1758983371203,-500.0,0.00026845,2]
[388040852,1758983371224,-500.0,0.00026845,2]
[388040853,1758983371260,-500.0,0.00026845,2]
[388040854,1758983371283,-500.0,0.00026845,2]
[388040855,1758983371307,-500.0,0.00026845,2]
[388040856,1758983371330,-500.0,0.00026845,2]
[388040857,1758983371352,-500.0,0.00026845,2]
[388040858,1758983371375,-500.0,0.00026845,2]
[388040859,1758983371396,-253.31852962,0.00026845,2]
[388040860,1758983371417,-3576.24526833,0.00026846,2]
[388040861,1758983421618,185.369485,0.00026491,2]
[388040862,1758983429949,500.0,8.219e-05,2]
[388040863,1758983430187,500.0,8.493e-05,2]
[388040864,1758983430482,500.0,8.767e-05,2]
[388040865,1758983430688,500.0,9.041e-05,2]
[388040866,1758983431250,500.0,9.315e-05,2]
[388040867,1758983431301,500.0,9.589e-05,2]
[388040868,1758983431345,500.0,9.863e-05,2]
[388040869,1758983431597,500.0,0.00010137,2]
[388040874,1758983431891,500.0,0.00010411,2]
[388040878,1758983432103,500.0,0.00010685,2]
[388040884,1758983432339,500.0,0.00010959,2]
[388040897,1758983432451,-300.0,0.00026845,2]
[388040899,1758983432465,-300.0,0.00026845,2]
[388040901,1758983432474,-300.0,0.00026845,2]
[388040903,1758983432484,-195.32164617,0.00026845,2]
[388040905,1758983432496,-1004.67835383,0.00026845,2]
[388040907,1758983432505,-300.0,0.00026845,2]
[388040909,1758983432516,-46259.8322867,0.00026846,2]
[388040911,1758983432526,-204.62870398,0.00028468,2]
[388040913,1758983432539,-551.80800322,0.000285,7]
[388040915,1758983432548,-207.66,0.00028911,2]
[388040917,1758983432558,-207.67475481,0.00029185,2]
[388040919,1758983432567,-612.7020836,0.00029632,65]
[388040921,1758983432578,-185.369485,0.00031057,60]
[388040923,1758983432587,-301.72968958,0.00032043,5]
[388040925,1758983432598,-501.54049966,0.00032043,5]
[388040927,1758983432608,-500.0,0.00032043,2]
[388040929,1758983432618,-501.68741839,0.0003239,5]
[388040931,1758983432627,-399.54623888,0.0003239,2]
[388040933,1758983432638,-502.71932361,0.0003239,5]
[388040935,1758983432647,-500.0,0.0003239,3]
[388040937,1758983432657,-500.0,0.0003239,5]
[388040938,1758983432666,-500.0,0.0003239,5]
[388040940,1758983432675,-500.0,0.0003239,5]
[388040943,1758983432685,-451.11506411,0.0003239,5]
[388040945,1758983432694,-1000.0,0.00032591,2]
[388040946,1758983432703,-500.0,0.00032618,5]
[388040948,1758983432712,-210.583,0.00032656,33]
[388040950,1758983432722,-151.0,0.00032656,2]
[388040952,1758983432731,-151.0,0.00032656,2]
[388040954,1758983432741,-151.0,0.00032656,2]
[388040956,1758983432750,-151.0,0.00032656,2]
[388040958,1758983432760,-151.0,0.00032656,2]
[388040960,1758983432769,-151.0,0.00032656,2]
[388040962,1758983432778,-151.0,0.00032656,2]
[388040964,1758983432788,-151.0,0.00032656,2]
[388040966,1758983432798,-151.0,0.00032656,2]
[388040968,1758983432807,-151.0,0.00032656,2]
[388040970,1758983432816,-156.02171104,0.00032656,2]
[388040972,1758983432825,-13399.1143963,0.00032666,2]
[388040974,1758983432835,-7320.14999136,0.00032666,2]
[388040976,1758983432844,-556.62,0.00032666,3]
[388040978,1758983432853,-278.31,0.00032666,3]
[388040979,1758983432862,-834.93,0.00032666,3]
[388040981,1758983432872,-393.94261196,0.00032676,3]
[388040983,1758983432881,-11467.38064898,0.00032676,2]
[388040986,1758983432896,-1194.683348,0.00032676,2]
[388040989,1758983432921,500.0,0.00011233,2]
[388041004,1758983433057,500.0,0.00011507,2]
[388041008,1758983433086,500.0,0.00011781,2]
[388041019,1758983433185,500.0,0.00012055,2]
[388041043,1758983433411,500.0,0.00012329,2]
[388041076,1758983433734,500.0,0.00012603,2]
[388041079,1758983433833,500.0,0.00012877,2]
[388041098,1758983434034,192.53395254,0.00013151,2]
[388041101,1758983434057,307.46604746,0.00013151,2]
[388041115,1758983434265,500.0,0.00013425,2]
[388041116,1758983434486,500.0,0.00013699,2]
[388041120,1758983434704,500.0,0.00013973,2]
[388041121,1758983434928,500.0,0.00014247,2]
[388041122,1758983435212,500.0,0.00014521,2]
[388041123,1758983438383,-75318.96135449,0.00032676,2]
[388041124,1758983438408,-11787.29260489,0.00032676,2]
[388041125,1758983438420,-18522.93556216,0.00032676,2]
[388041140,1758983440212,-8997.87202304,0.00032676,2]
[388041149,1758983444297,-667.59392987,0.00032676,2]
[388041150,1758983444337,-405.36183419,0.00032676,2]
[388041161,1758983446352,-13366.60556768,0.00032676,2]
[388041163,1758983523945,500.0,0.00015068,2]
[388041166,1758983858409,160.0,0.00024219,12]
[388041170,1758984315365,1000.0,0.00033101,60]
[388041171,1758984333590,-173.28055729,0.0002582,2]
[388041174,1758984435085,-172.247206,0.000258,2]
[388041175,1758984436081,-127.752794,0.000258,2]
[388041176,1758984436102,-65.70389405,0.0002582,2]
[388041177,1758984440126,-213.76701299,0.0002582,2]
[388041178,1758984452082,-547.24853567,0.0002582,2]
[388041179,1758984452102,-160.0,0.00026,3]
[388041180,1758984452120,-174.00897462,0.00026739,2]
[388041181,1758984452140,-300.0,0.00026796,2]
[388041182,1758984452160,-1200.0,0.00026796,2]
[388041183,1758984452180,-300.0,0.00026797,2]
[388041184,1758984452200,-261.3744899,0.00026797,2]
[388041186,1758984549128,-153.11843365,0.00026743,5]
[388041187,1758984549149,-300.0,0.00026795,2]
[388041188,1758984549170,-500.0,0.00026796,2]
[388041189,1758984549196,-500.0,0.00026796,2]
[388041190,1758984549218,-500.0,0.00026796,2]
[388041191,1758984549242,-500.0,0.00026796,2]
[388041192,1758984549263,-500.0,0.00026796,2]
[388041193,1758984549284,-607.94248488,0.00026796,2]
[388041194,1758984549306,-500.0,0.00026796,2]
[388041195,1758984549329,-500.0,0.00026796,2]
[388041196,1758984549353,-500.0,0.00026796,2]
[388041197,1758984549374,-500.0,0.00026796,2]
[388041198,1758984549396,-500.0,0.00026796,2]
[388041199,1758984549418,-500.0,0.00026796,2]
[388041200,1758984549440,-259.63412516,0.00026796,2]
[388041201,1758984549461,-500.0,0.00026796,2]
[388041202,1758984549484,-500.0,0.00026796,2]
[388041203,1758984549506,-349.11371614,0.00026796,2]
[388041204,1758984549527,-500.0,0.00026796,2]
[388041205,1758984549550,-500.0,0.00026796,2]
[388041206,1758984549570,-1147.33709721,0.00026797,2]
[388041207,1758984551092,-6636.67087263,0.00026797,2]
[388041208,1758984565073,-763.1697766,0.00026797,2]
[388041209,1758984611402,9454.71691167,0.000255,2]
[388041227,1758984632464,-1831.47604183,0.000255,2]
[388041229,1758984632475,-620.88916274,0.000255,2]
[388041231,1758984632487,-2236.78788376,0.000255,2]
[388041233,1758984632497,-300.0,0.00026796,2]
[388041236,1758984632508,-300.0,0.00026796,2]
[388041237,1758984632518,-1200.0,0.00026796,2]
[388041239,1758984632527,-300.0,0.00026796,2]
[388041241,1758984632537,-1098.98783367,0.00026797,2]
[388041243,1758984632547,-185.369485,0.00028145,60]
[388041245,1758984632557,-1200.0,0.00028976,2]
[388041247,1758984632566,-300.0,0.00028976,2]
[388041249,1758984632576,-420.0,0.00028976,2]
[388041251,1758984632585,-420.0,0.00028976,2]
[388041253,1758984632594,-480.0,0.00030136,15]
[388041255,1758984632603,-300.0,0.00031332,3]
[388041257,1758984632612,-180.0,0.00031332,3]
[388041259,1758984632622,-208.445,0.00031384,29]
[388041261,1758984632632,-18795.9733622,0.00031385,2]
[388041264,1758984632641,-690.66254703,0.00032476,2]
[388041267,1758984632650,-258.79328995,0.00032476,2]
[388041270,1758984632659,-168.0,0.00032535,2]
[388041273,1758984632669,-7034.53505811,0.00032566,2]
[388041276,1758984632678,-3843.07874545,0.00032566,2]
[388041279,1758984632689,-834.93,0.00032566,3]
[388041282,1758984632698,-767.42,0.00032566,10]
[388041285,1758984632707,-196.97130598,0.00032576,3]
[388041288,1758984632716,-63475.79925577,0.00032576,2]
[388041294,1758984632741,-3280.5,0.00032576,2]
[388041301,1758984632772,-194.6556759,0.00032475,2]
[388041304,1758984632781,-1172.36332891,0.00032576,2]
[388041306,1758984632792,-2750.0,0.00032576,2]
[388041381,1758984638596,-195.5149028,0.00026795,2]
[388041383,1758984638606,-538.79041291,0.00026795,2]
[388041385,1758984638616,-347.59353246,0.00032475,2]
[388041387,1758984638626,-224.32238903,0.00032476,2]
[388041389,1758984638636,-299321.33741532,0.00032576,2]
[388041391,1758984638647,-500.0,0.00032576,10]
[388041393,1758984638656,-500.0,0.00032576,10]
[388041395,1758984638667,-690.66254701,0.00032607,2]
[388041397,1758984638676,-834.93,0.00032666,3]
[388041399,1758984638687,-690.66254701,0.00032739,2]
[388041401,1758984638697,-447.3011316,0.000328,2]
[388041403,1758984638707,-548.0,0.00032835,2]
[388041405,1758984638716,-500.0,0.0003285,10]
[388041406,1758984638725,-500.0,0.0003285,10]
[388041408,1758984638735,-690.66254701,0.0003287,2]
[388041410,1758984638745,-427.0,0.00032876,60]
[388041412,1758984638755,-151.0,0.00032876,60]
[388041414,1758984638766,-443.96247478,0.00032876,120]
[388041416,1758984638775,-507.255479,0.00032877,2]
[388041418,1758984638784,-800.0,0.00032918,2]
[388041420,1758984638794,-2500.0,0.00032958,2]
[388041422,1758984638803,-2500.0,0.00032958,2]
[388041424,1758984638813,-2500.0,0.00032958,2]
[388041426,1758984638823,-2500.0,0.00032958,2]
[388041428,1758984638833,-2500.0,0.00032958,2]
[388041430,1758984638842,-2500.0,0.00032958,2]
[388041432,1758984638852,-2500.0,0.00032958,2]
[388041434,1758984638862,-2500.0,0.00032958,2]
[388041436,1758984638872,-800.0,0.00032962,2]
[388041438,1758984638883,-10049.3357973,0.0003299,2]
[388041439,1758984638893,-5490.1124935,0.0003299,2]
[388041441,1758984638903,-500.0,0.0003299,2]
[388041443,1758984638913,-155.0,0.00032999,2]
[388041445,1758984638923,-500.0,0.00032999,10]
[388041447,1758984638934,-151.0,0.00032999,2]
[388041449,1758984638944,-181422.64134286,0.00033,25]
[388041452,1758984638954,-148674.63673,0.00033,2]
[388041453,1758984638964,-151.0,0.00033,10]
[388041455,1758984638974,-151.0,0.00033,10]
[388041457,1758984638983,-151.0,0.00033,7]
[388041459,1758984638993,-151.0,0.00033,7]
[388041461,1758984639001,-151.0,0.00033,7]
[388041463,1758984639011,-151.0,0.00033,7]
[388041465,1758984639021,-151.0,0.00033,7]
[388041467,1758984639035,-151.0,0.00033,7]
[388041469,1758984639045,-151.0,0.00033,7]
[388041471,1758984639054,-151.0,0.00033,7]
[388041472,1758984639063,-151.0,0.00033,7]
[388041474,1758984639074,-151.0,0.00033,7]
[388041476,1758984639084,-151.0,0.00033,7]
[388041478,1758984639094,-151.0,0.00033,7]
[388041480,1758984639103,-151.0,0.00033,7]
[388041482,1758984639113,-151.0,0.00033,7]
[388041484,1758984639126,-151.0,0.00033,7]
[388041485,1758984639135,-151.0,0.00033,7]
[388041486,1758984639145,-151.0,0.00033,7]
[388041487,1758984639154,-151.0,0.00033,7]
[388041488,1758984639163,-151.0,0.00033,7]
[388041490,1758984639174,-151.0,0.00033,7]
[388041492,1758984639183,-151.0,0.00033,7]
[388041493,1758984639192,-274.504014,0.00033,7]
[388041495,1758984639202,-151.0,0.00033,7]
[388041497,1758984639212,-151.0,0.00033,7]
[388041499,1758984639222,-151.0,0.00033,7]
[388041501,1758984639232,-151.0,0.00033,7]
[388041503,1758984639241,-151.257412,0.00033,7]
[388041505,1758984639250,-151.0,0.00033,7]
[388041507,1758984639260,-151.0,0.00033,7]
[388041509,1758984639269,-151.0,0.00033,7]
[388041511,1758984639279,-151.0,0.00033,7]
[388041513,1758984639289,-151.0,0.00033,7]
[388041514,1758984639299,-151.0,0.00033,7]
[388041515,1758984639308,-151.0,0.00033,7]
[388041516,1758984639318,-329.306758,0.00033,7]
[388041517,1758984639328,-329.306758,0.00033,7]
[388041518,1758984639338,-329.306758,0.00033,7]
[388041519,1758984639348,-329.306758,0.00033,7]
[388041520,1758984639358,-151.0,0.00033,7]
[388041521,1758984639369,-539.467538,0.00033,7]
[388041522,1758984639379,-151.0,0.00033,7]
[388041523,1758984639388,-329.306758,0.00033,7]
[388041524,1758984639398,-151.0,0.00033,7]
[388041525,1758984639408,-329.306758,0.00033,7]
[388041526,1758984639417,-539.467538,0.00033,7]
[388041527,1758984639428,-151.0,0.00033,7]
[388041528,1758984639438,-329.306758,0.00033,7]
[388041529,1758984639447,-151.0,0.00033,7]
[388041530,1758984639457,-539.467538,0.00033,7]
[388041531,1758984639467,-329.306758,0.00033,7]
[388041532,1758984639476,-166.67587,0.00033,7]
[388041533,1758984639485,-539.467538,0.00033,7]
[388041534,1758984639494,-151.0,0.00033,7]
[388041535,1758984639503,-151.0,0.00033,7]
[388041536,1758984639513,-151.0,0.00033,7]
[388041537,1758984639522,-151.0,0.00033,7]
[388041538,1758984639532,-151.0,0.00033,7]
[388041539,1758984639541,-151.0,0.00033,7]
[388041540,1758984639550,-151.0,0.00033,7]
[388041541,1758984639559,-151.0,0.00033,7]
[388041542,1758984639568,-151.0,0.00033,7]
[388041543,1758984639577,-151.0,0.00033,7]
[388041544,1758984639586,-152.675005,0.00033,7]
[388041545,1758984639596,-151.0,0.00033,7]
[388041546,1758984639605,-151.0,0.00033,7]
[388041547,1758984639614,-151.0,0.00033,7]
[388041548,1758984639623,-151.0,0.00033,7]
[388041549,1758984639632,-207.293317,0.00033,7]
[388041550,1758984639641,-207.293317,0.00033,7]
[388041551,1758984639650,-709.505836,0.00033,7]
[388041552,1758984639660,-709.505836,0.00033,7]
[388041553,1758984639669,-207.293317,0.00033,7]
[388041554,1758984639679,-207.293317,0.00033,7]
[388041555,1758984639688,-207.293317,0.00033,7]
[388041556,1758984639699,-709.505836,0.00033,7]
[388041557,1758984639708,-207.293317,0.00033,7]
[388041558,1758984639718,-709.505836,0.00033,7]
[388041559,1758984639728,-207.293317,0.00033,7]
[388041560,1758984639737,-207.293317,0.00033,7]
[388041561,1758984639747,-709.505836,0.00033,7]
[388041562,1758984639756,-709.505836,0.00033,7]
[388041563,1758984639765,-151.0,0.00033,7]
[388041564,1758984639774,-709.505836,0.00033,7]
[388041565,1758984639783,-151.0,0.00033,7]
[388041566,1758984639793,-709.505836,0.00033,7]
[388041567,1758984639802,-151.0,0.00033,7]
[388041568,1758984639811,-151.0,0.00033,7]
[388041569,1758984639821,-151.0,0.00033,7]
[388041570,1758984639830,-151.0,0.00033,7]
[388041571,1758984639839,-151.0,0.00033,7]
[388041572,1758984639848,-274.298072,0.00033,7]
[388041573,1758984639858,-294.611227,0.00033,7]
[388041574,1758984639867,-151.0,0.00033,7]
[388041575,1758984639878,-151.0,0.00033,7]
[388041576,1758984639887,-151.0,0.00033,7]
[388041577,1758984639897,-151.0,0.00033,7]
[388041578,1758984639906,-151.0,0.00033,7]
[388041579,1758984639916,-151.0,0.00033,7]
[388041580,1758984639926,-151.0,0.00033,7]
[388041581,1758984639936,-151.0,0.00033,7]
[388041582,1758984639945,-151.0,0.00033,7]
[388041583,1758984639955,-151.0,0.00033,7]
[388041584,1758984639965,-151.0,0.00033,7]
[388041585,1758984639974,-151.0,0.00033,7]
[388041586,1758984639984,-151.0,0.00033,7]
[388041587,1758984639994,-151.0,0.00033,7]
[388041588,1758984640003,-151.0,0.00033,7]
[388041589,1758984640013,-151.0,0.00033,7]
[388041590,1758984640025,-193.464701,0.00033,7]
[388041591,1758984640035,-167.389996,0.00033,7]
[388041592,1758984640044,-167.389996,0.00033,7]
[388041593,1758984640053,-167.389996,0.00033,7]
[388041594,1758984640063,-167.389996,0.00033,7]